Cogmind - Beta 15 @@@ ROGUE MODE // 2025.05.21 @ 14:37:53 Player: morimori Result: Destroyed by Y-54 Guardian with Gatling Laser Performance ------------- Evolutions (3) 1500 Regions Visited (6) 1200 Robots Destroyed (115) 575 Value Destroyed (3183) 3183 Prototype IDs (7) 140 Alien Tech Used (0) 0 Bonus (-70) -70 TOTAL SCORE: 6528 Bonus ------- Follower Combat Kills 83 Friendly Fire -153 Cogmind --------- Core Integrity 0/700 Matter 213/300 Energy 44/160 System Corruption 1% Temperature Cool (12) Movement Core (500) Ox9 Location -7/Factory Parts ------- > --- POWER (1) -------- Light Nuclear Core > --- PROPULSION (5) --- (None) > --- UTILITY (5) ------ Large Storage Unit Advanced Visual Processing Unit Improved Signal Interpreter > --- WEAPON (2) ------- Heavy Flail > --- INVENTORY (15) --- Improved Heat Sink High-capacity Storage Unit Improved Sensor Array Improved Terrain Scanner Improved Utility Shielding Hacking Suite Hacking Suite Authchip [Storage] Authchip [Weapon] Peak State ------------ > --- POWER ------------ Light Nuclear Core > --- PROPULSION ------- Improved Hover Unit Improved Hover Unit Gravmag System Gravmag System Gravmag System > --- UTILITY ---------- Advanced Heat Sink Large Storage Unit Advanced Visual Processing Unit Improved Utility Shielding Hacking Suite > --- WEAPON ----------- Gatling Laser Flak Gun > --- INVENTORY -------- Light Nuclear Core Hover Unit Hover Unit Improved Heat Sink Improved Heat Sink Improved Heat Sink High-capacity Storage Unit Improved Terrain Scanner Hacking Suite Hacking Suite Authchip [Storage] Authchip [Weapon] Gatling Laser Rocket Launcher Heavy Flail [Rating: 46] Favorites ----------- Power Light Nuclear Core Engine Ion Engine Power Core Light Nuclear Core Propulsion Wheel Wheel Wheel Hover Unit Gravmag System Utility High-capacity Storage Unit Device Seismic Detector Storage High-capacity Storage Unit Processor Advanced Visual Processing Unit Hackware Hacking Suite Protection Reflective Plating Weapon Autogun Energy Gun EM Shotgun Ballistic Gun Autogun Launcher Grenade Launcher Impact Weapon Heavy Flail Slashing Weapon Scythe Build | -11 -10 -10 -9 -9 -8 -7 ------- Run | Yrd Mat Min Mat Min Mat Fac Slots Evolved 6 | . . . 2 . 2 2 Power . | . . . . . . . Propulsion 3 | . . . . . 2 1 Utility 3 | . . . 2 . . 1 Weapon . | . . . . . . . Parts Attached 96 | 7 16 . 9 3 36 25 Power 13 | 1 2 . 1 . 6 3 Engine 9 | 1 2 . . . 6 . Core 4 | . . . 1 . . 3 Reactor . | . . . . . . . Propulsion 36 | 2 4 . 3 2 16 9 Treads . | . . . . . . . Leg . | . . . . . . . Wheel 29 | 2 4 . 3 2 16 2 Hover 7 | . . . . . . 7 Flight . | . . . . . . . Utility 24 | 2 4 . 2 1 7 8 Device 10 | 1 1 . 1 1 2 4 Storage 5 | 1 3 . . . 1 . Processor 3 | . . . 1 . 1 1 Hackware 2 | . . . . . . 2 Protection 4 | . . . . . 3 1 Artifact . | . . . . . . . Weapon 23 | 2 6 . 3 . 7 5 Energy Gun 6 | . . . . . 3 3 Energy Cannon . | . . . . . . . Ballistic Gun 11 | 2 4 . 1 . 3 1 Ballistic Cannon . | . . . . . . . Launcher 4 | . 2 . 1 . 1 . Special Weapon . | . . . . . . . Impact Weapon 1 | . . . . . . 1 Slashing Weapon 1 | . . . 1 . . . Piercing Weapon . | . . . . . . . Special Melee Weapon . | . . . . . . . Unidentified Prototypes 1 | . . . . . . 1 Parts Lost 53 | . 2 . 6 1 14 30 Power 5 | . . . 1 . 1 3 Propulsion 26 | . 2 . 3 . 7 14 Utility 8 | . . . . 1 2 5 Weapon 14 | . . . 2 . 4 8 Highest Loss Streak 15 | . 2 . 3 1 6 15 To Critical Strikes . | . . . . . . . Average Backups 18 | 3 11 19 18 19 19 18 Power 1 | 1 1 1 1 1 1 1 Propulsion 5 | . 2 6 5 7 6 5 Utility 6 | . 4 7 5 5 6 8 Weapon 4 | . 3 5 6 6 5 2 Tool/Special . | . . . . . . . Unused Backups 19 | . 7 . . . 4 8 Power 4 | . 3 . . . 1 . Propulsion 5 | . 1 . . . 2 2 Utility 9 | . 2 . . . 1 6 Weapon 1 | . 1 . . . . . Tool/Special . | . . . . . . . Average Slot Usage (%) 93 | . 99 100 86 99 90 90 Engine 7 | . 14 14 4 . 8 4 Core 2 | . . . 5 11 . 1 Wheel 25 | . 27 28 21 22 29 23 Hover 1 | . . . . . . 7 Device 13 | . 14 14 11 21 12 10 Storage 10 | . 14 14 10 11 9 7 Processor 7 | . . . 10 11 9 7 Hackware 1 | . . . . . . 7 Protection 1 | . . . . . 3 1 Ballistic Gun 18 | . 27 27 20 21 13 8 Peak Build Rating 46 | 7 12 12 20 20 26 46 Average Rating 19 | 5 9 11 14 18 23 30 On Entrance 13 | . 7 12 12 20 19 26 Naked Turns . | . . . . . . . Heaviest Build 59 | 12 52 52 53 53 58 59 Greatest Support 70 | 26 26 20 26 20 58 70 Greatest Overweight (x) 9 | 3 2 2 5 2 4 9 Average Overweight (x) 1 | . . 2 2 2 1 . Largest Inventory Capacity 20 | 8 20 20 20 20 20 20 Average Capacity 18 | 7 13 20 19 20 20 18 Most Carried 20 | 6 19 19 20 20 20 20 Average Carried 18 | 3 11 19 18 19 19 18 Final Capacity 20 | 8 20 20 20 20 20 15 Final Carried 20 | 6 19 19 19 20 20 9 Class Distribution -------------------- 75% | Scavenger-Mutant 23% | Mutant Dominant Class ---------------- Mutant | -10/Materials Mutant | -10/Mines Scavenger-Mutant | -9/Materials Scavenger-Mutant | -9/Mines Scavenger-Mutant | -8/Materials Scavenger-Mutant | -7/Factory Resources | -11 -10 -10 -9 -9 -8 -7 ----------- Run | Yrd Mat Min Mat Min Mat Fac Matter Collected 3301 | 290 316 70 523 310 1219 573 Remotely . | . . . . . . . Salvage Created 3957 | 82 362 117 694 200 1605 897 Parts 247 | 8 27 12 43 17 105 35 Haulers Intercepted 1 | . 1 . . . . . Recyclers Shooed 5 | . 1 . 1 . 3 . Parts Field Recycled . | . . . . . . . Retrieved Matter . | . . . . . . . Parts Self-Destructed . | . . . . . . . Prevented . | . . . . . . . Kills | -11 -10 -10 -9 -9 -8 -7 ------- Run | Yrd Mat Min Mat Min Mat Fac Combat Hostiles Destroyed 72 | . 7 4 13 7 26 15 Melee 1 | . . . . . . 1 Guns 54 | . 4 2 9 7 18 14 AOE 17 | . 3 2 4 . 8 . Classes Destroyed 14 | 2 6 . 3 . 2 1 Worker 8 | . . . 3 . 3 2 Builder 4 | . . . 1 . 3 . Tunneler 4 | 2 . . . 1 1 . Hauler 1 | . 1 . . . . . Recycler 9 | 1 1 . 1 . 3 3 Mechanic 3 | . 1 . 1 . . 1 Operator 4 | . 1 . 2 . 1 . Watcher 9 | . 2 . 2 . 4 1 Swarmer 20 | . 3 3 4 4 3 3 Grunt 30 | . 4 2 6 3 10 5 Duelist 1 | . . . . . 1 . Sentry 15 | . . . 3 . 9 3 Hunter 5 | . . . . . 3 2 Programmer 2 | . . . . . . 2 Best Kill Streak 11 | 3 3 3 6 4 11 8 Combat Bots Only 8 | . 3 3 4 4 8 3 Max Kills in Single Turn 4 | 1 3 2 4 1 3 3 Gunslinging . | . . . . . . . Exploded 4 | . 3 2 4 . 3 . Melee 1 | . . . . . . 1 Uniques/NPCs Destroyed . | . . . . . . . Combat | -11 -10 -10 -9 -9 -8 -7 -------- Run | Yrd Mat Min Mat Min Mat Fac Hostile Shots Fired 708 | . 26 8 80 17 152 425 Missed 227 | . 9 2 18 4 45 149 Hits 481 | . 17 6 62 13 107 276 Melee 6 | . . . . . 6 . Projectile 475 | . 17 6 62 13 101 276 AOE 2 | . . 2 . . . . Critical Strikes 5 | . . . . . 5 . Part Disruptions 1 | . . . . . . 1 Damage Taken 5734 | . 314 119 791 160 1736 2614 Core 1464 | . 23 61 169 80 427 704 Absorbed by Shields . | . . . . . . . Redirected to Shielding 13 | . . . . . . 13 Ignored by Resistances 44 | . . . . . 4 40 Regen/Repaired (Parts) 144 | . . . 59 . 85 . Core Remaining (%) 56 | 100 . 66 . 37 22 . Volleys Fired 296 | 5 36 5 65 16 107 62 Largest 2 | 2 2 2 2 2 2 2 Hottest 160 | 40 46 46 46 46 95 160 Shots Fired 551 | 10 58 9 126 32 211 105 Gun 538 | 10 56 8 125 32 205 102 Cannon . | . . . . . . . Launcher 13 | . 2 1 1 . 6 3 Special . | . . . . . . . Kinetic 464 | 10 56 8 125 32 165 68 Thermal 34 | . . . . . . 34 Explosive 13 | . 2 1 1 . 6 3 Electromagnetic 40 | . . . . . 40 . Robot Hit Streak 12 | 7 12 2 8 5 11 8 Robot Miss Streak 9 | . 3 1 3 2 4 9 Penetration Max 1 | . . . . . 1 . Secondary Targets 4 | . 1 . 1 . 1 1 Max Gunslinging Chain 1 | . 1 . 1 . 1 1 Shots Hit Robots 367 | 7 39 5 79 18 140 79 Core Hits 222 | 3 24 7 30 9 78 71 Critical Kills . | . . . . . . . Critical Parts Destroyed . | . . . . . . . Critical Strikes . | . . . . . . . Melee Attacks 27 | . . . 2 . 9 16 Impact 16 | . . . . . . 16 Slashing 11 | . . . 2 . 9 . Piercing . | . . . . . . . Sneak Attacks 1 | . . . . . . 1 Combat Hostiles . | . . . . . . . Follow-up Attacks . | . . . . . . . Damage Inflicted 7699 | 87 611 168 1496 327 3183 1827 Guns 6038 | 87 452 114 1345 327 2360 1353 Cannons . | . . . . . . . Explosions 1449 | . 159 54 142 . 823 271 Melee 203 | . . . . . . 203 Ramming 9 | . . . 9 . . . Kinetic 4985 | 87 452 114 1345 327 1881 779 Thermal 871 | . . . . . 31 840 Explosive 1152 | . 159 54 142 . 792 5 Electromagnetic 479 | . . . . . 479 . Impact 203 | . . . . . . 203 Slashing . | . . . . . . . Piercing . | . . . . . . . Highest Corruption 4 | . . . . . 4 1 Average Corruption 2 | . . . . . 3 1 Corruption Purged . | . . . . . . . Corruption Blocked . | . . . . . . . Effects 10 | . . . . . 7 3 Message Errors 4 | . . . . . 3 1 Matter Fused 4 | . . . . . 3 1 Heat Flow Errors 1 | . . . . . . 1 Data Loss (minor) 1 | . . . . . 1 . Overload Shots . | . . . . . . . Overflow Damage 152 | . . . . . . 152 Projectiles . | . . . . . . . Explosions 108 | . . . . . . 108 Melee 44 | . . . . . . 44 Knockbacks 1 | . . . . . . 1 Impact 1 | . . . . . . 1 Kinetic . | . . . . . . . Secondary . | . . . . . . . Self-Inflicted Damage 47 | . 12 . 4 . 9 22 Shots 3 | . 1 . . . 1 1 Rammed 1 | . . . 1 . . . Targets Rammed 1 | . . . 1 . . . Kicked . | . . . . . . . Crushed . | . . . . . . . Highest Temperature 163 | . 24 6 51 . 36 163 Average Temperature 16 | . 7 4 13 . 11 29 Received Heat Transfer 1680 | . 114 . 402 18 594 552 Siege Activations . | . . . . . . . Martial Activations . | . . . . . . . Shielding Activations . | . . . . . . . Robots Disrupted . | . . . . . . . Combat Hostiles . | . . . . . . . Robots Corrupted 1 | . . . . . . 1 Combat Hostiles . | . . . . . . . Parts Fried 5 | . . . . . 5 . Impact Corruptions 2 | . . . . . . 2 Robots Melted . | . . . . . . . Combat Hostiles . | . . . . . . . Parts Melted 1 | . . . . . . 1 Heat Transferred 1448 | . . . . . 50 1398 Parts Sabotaged . | . . . . . . . Parts Stolen . | . . . . . . . Parts Stripped . | . . . . . . . Power Chain Reactions 1 | . . . . . 1 . Alert | -11 -10 -10 -9 -9 -8 -7 ------- Run | Yrd Mat Min Mat Min Mat Fac Maximum Alert Level 1 | . . . . . 1 1 Low Security (%) 92 | 100 100 100 100 100 82 84 Level 1 7 | . . . . . 17 15 Level 2 . | . . . . . . . Level 3 . | . . . . . . . Level 4 . | . . . . . . . Level 5 . | . . . . . . . High Security . | . . . . . . . Max Security . | . . . . . . . Peak Influence 346 | 5 74 119 171 80 306 346 Initial 46 | . . 16 . 29 5 46 Average 56 | 1 15 28 72 12 99 57 Influence Increases 2738 | 15 270 182 550 155 866 700 Destroy 0b10 Robot/C 1500 | . 140 100 300 140 520 300 Destroy 0b10 Robot/NC 210 | 15 30 . 50 5 75 35 Destroy Leader 440 | . 46 20 84 10 188 92 Allied During Kill 30 | . . 13 17 . . . Successful Hack 58 | . 27 . 19 . 12 . Disable Machine 195 | . 15 45 15 . . 120 Destroy Structure 125 | . 12 4 5 . 56 48 Partial Spotted 15 | . . . . . 15 . Lose Combat Pursuer 165 | . . . 60 . . 105 Influence Decreases 2459 | 15 227 225 474 217 776 525 Entered New Map 141 | . . 27 . 47 9 58 Time Decay 1738 | 15 217 183 372 170 497 284 Lost Part 370 | . 10 . 60 . 117 183 Lost Ally 35 | . . 15 20 . . . Purge Threat 175 | . . . 22 . 153 . Squads Dispatched 21 | . 3 . 2 . 4 12 Investigation 5 | . 3 . . . . 2 Extermination 3 | . . . . . . 3 Reinforcement 7 | . . . 2 . 1 4 Assault . | . . . . . . . Garrison 6 | . . . . . 3 3 Intercept . | . . . . . . . Searches Triggered . | . . . . . . . Construction Impeded . | . . . . . . . Haulers Reinforced . | . . . . . . . Active Scanning Responses . | . . . . . . . Cargo Convoy Interrupts . | . . . . . . . Stealth | -11 -10 -10 -9 -9 -8 -7 --------- Run | Yrd Mat Min Mat Min Mat Fac Distress Signals 11 | . 2 . 3 . 3 3 Communications Jammed . | . . . . . . . Distress Signals . | . . . . . . . Times Spotted 127 | . 15 6 27 8 42 29 Peak Tracking Total 9 | . 4 3 4 4 9 5 Tactical Retreats 9 | . 1 . 3 . . 5 Traps | -11 -10 -10 -9 -9 -8 -7 ------- Run | Yrd Mat Min Mat Min Mat Fac Traps Triggered 7 | . 2 . . . 3 2 Indirectly . | . . . . . . . Trap Hack Attempts . | . . . . . . . Triggered . | . . . . . . . Disarmed . | . . . . . . . Reprogrammed . | . . . . . . . Reused . | . . . . . . . Traps Extracted . | . . . . . . . Installed . | . . . . . . . Triggered . | . . . . . . . Machines | -11 -10 -10 -9 -9 -8 -7 ---------- Run | Yrd Mat Min Mat Min Mat Fac Machines Disabled 13 | . 1 3 1 . . 8 Max in Single Turn 6 | . 1 3 1 . . 6 Garrison Access 1 | . . . . . 1 . Machines Repaired . | . . . . . . . Machines Dismantled . | . . . . . . . Machines Sabotaged . | . . . . . . . Overloaded Fab Kills . | . . . . . . . Hacking | -11 -10 -10 -9 -9 -8 -7 --------- Run | Yrd Mat Min Mat Min Mat Fac Machines Accessed 35 | . 7 . 9 . 13 6 Terminals 26 | . 7 . 7 . 10 2 Fabricators 3 | . . . . . . 3 Repair Stations 3 | . . . 1 . 1 1 Recycling Units 2 | . . . 1 . 1 . Scanalyzers . | . . . . . . . Garrison Access 1 | . . . . . 1 . Total Hacks 95 | . 20 . 27 . 36 12 Successful 41 | . 8 . 16 . 12 5 Failed 54 | . 12 . 11 . 24 7 Catastrophic 7 | . 1 . 1 . 4 1 Database Lockouts . | . . . . . . . Manual 50 | . 17 . 13 . 15 5 Terminals 78 | . 20 . 22 . 32 4 Fabricators 7 | . . . . . . 7 Repair Stations 7 | . . . 4 . 2 1 Recycling Units 2 | . . . 1 . 1 . Scanalyzers . | . . . . . . . Garrison Access 1 | . . . . . 1 . Terminal Hacks 18 | . 5 . 6 . 6 1 Part Schematic 1 | . 1 . . . . . Robot Analysis 1 | . 1 . . . . . Prototype ID Bank 3 | . 1 . 2 . . . Level Access Points 1 | . . . . . 1 . Terminal Index 2 | . 1 . 1 . . . Alert Level 1 | . . . . . 1 . Unreport Threat 3 | . . . 1 . 2 . Locate Traps 3 | . . . 1 . 1 1 Zone Layout 3 | . 1 . 1 . 1 . Fabricator Hacks 2 | . . . . . . 2 Network Status 1 | . . . . . . 1 Load Schematic 1 | . . . . . . 1 Repair Station Hacks 6 | . . . 4 . 2 . Scan Component 3 | . . . 2 . 1 . Repair 3 | . . . 2 . 1 . Recycling Unit Hacks 2 | . . . 1 . 1 . Retrieve Components 2 | . . . 1 . 1 . Scanalyzer . | . . . . . . . Garrison Access Hacks 1 | . . . . . 1 . Seal Access 1 | . . . . . 1 . Unauthorized Hacks 11 | . 3 . 4 . 2 2 Terminals 9 | . 3 . 4 . 2 . Botnet 6 | . 2 . 3 . 1 . Operators 3 | . 1 . 1 . 1 . Fabricators 2 | . . . . . . 2 Recompile 2 | . . . . . . 2 Repair Stations . | . . . . . . . Recycling Units . | . . . . . . . Scanalyzers . | . . . . . . . Garrison Access . | . . . . . . . Data Cores Recovered 1 | . 1 . . . . . Used . | . . . . . . . Hacking Detections 29 | . 7 . 8 . 10 4 Full Trace Events 1 | . 1 . . . . . Feedback Events . | . . . . . . . Feedback Blocked . | . . . . . . . Robot Schematics Acquired . | . . . . . . . Robots Built . | . . . . . . . Authchips . | . . . . . . . Time . | . . . . . . . Total Robot Build Rating . | . . . . . . . Part Schematics Acquired 1 | . 1 . . . . . Parts Built . | . . . . . . . Authchips . | . . . . . . . Time . | . . . . . . . Total Part Build Rating . | . . . . . . . Parts Repaired 3 | . . . 2 . 1 . Time 90 | . . . 58 . 32 . Parts Recycled . | . . . . . . . Recycled Matter . | . . . . . . . Retrieved Matter . | . . . . . . . Retrieved Components 19 | . . . 9 . 10 . Parts Scanalyzed . | . . . . . . . Part Schematics Acquired . | . . . . . . . Parts Damaged . | . . . . . . . Bothacking | -11 -10 -10 -9 -9 -8 -7 ------------ Run | Yrd Mat Min Mat Min Mat Fac Used RIF Installer . | . . . . . . . Robots Hacked . | . . . . . . . Non-combat . | . . . . . . . Combat . | . . . . . . . Robot Hacks Applied . | . . . . . . . Relay Couplers Released . | . . . . . . . Fabnet Peak Effective % . | . . . . . . . Robots Rewired . | . . . . . . . Allies Hacked . | . . . . . . . Hacks Repelled . | . . . . . . . Allies | -11 -10 -10 -9 -9 -8 -7 -------- Run | Yrd Mat Min Mat Min Mat Fac Total Allies 4 | . . 4 . . . . Largest Group 4 | . . 4 2 . . . Highest-Rated Group 71 | . . 71 32 . . . Highest-Rated Ally 31 | . . 31 16 . . . Total Orders . | . . . . . . . Ally Attacks 32 | . . 9 23 . . . Total Damage 414 | . . 123 291 . . . Kills 3 | . . 1 2 . . . Allies Corrupted . | . . . . . . . Allies Melted . | . . . . . . . Intel | -11 -10 -10 -9 -9 -8 -7 ------- Run | Yrd Mat Min Mat Min Mat Fac Active Infowar (turns) 6760 | 51 807 692 1184 845 1830 1351 Optics 5163 | . . . 1137 845 1830 1351 Sensors 79 | . . . . . . 79 Seismic 5087 | 51 807 692 1155 824 702 856 Robot Analysis Total 1 | . 1 . . . . . Derelict Logs Recovered 2 | . . 1 . 1 . . Drone Launches . | . . . . . . . Drone Recoveries . | . . . . . . . Exploration | -11 -10 -10 -9 -9 -8 -7 ------------- Run | Yrd Mat Min Mat Min Mat Fac Turns Passed 6888 | 89 897 692 1184 845 1830 1351 Spaces Moved 5094 | 59 666 568 785 666 1227 1123 Core 15 | 14 . . . . . 1 Treads . | . . . . . . . Legs . | . . . . . . . Wheels 4779 | 45 666 568 785 666 1227 822 Hover 300 | . . . . . . 300 Flight . | . . . . . . . Fastest Speed 44 | 50 90 110 105 110 95 44 Average Speed 101 | 92 96 110 110 110 103 87 Slowest Speed 500 | 200 110 110 155 110 140 500 Overloaded Moves . | . . . . . . . Propulsion Burnouts . | . . . . . . . Robots Hopped . | . . . . . . . Potential Cave-ins . | . . . . . . . Cave-ins Triggered . | . . . . . . . Exploration Rate (%) 66 | 4 85 99 59 96 92 32 Regions Visited 6 Branch Regions 2 Pre-discovered Areas 1 | . . 1 . . . . Known Exits Taken 1 | . . . . . 1 . Unknown Exits Taken 5 | 1 1 1 1 1 . . Scrap Searched 3 | . . 1 . 2 . . Spaces Dug 21 | . . . 1 . 9 11 Terrain Destroyed 140 | . 11 4 4 . 73 48 Melee 21 | . . . 1 . 9 11 Projectile . | . . . . . . . AOE 119 | . 11 4 3 . 64 37 Terrain Rammed . | . . . . . . . Walls Destroyed . | . . . . . . . Machines Disabled . | . . . . . . . Actions | -11 -10 -10 -9 -9 -8 -7 --------- Run | Yrd Mat Min Mat Min Mat Fac Total 6249 | 80 874 626 990 754 1573 1352 Wait 561 | 4 120 52 93 64 146 82 Move 5088 | 58 665 567 784 665 1226 1123 Hop . | . . . . . . . Pick Up 68 | 6 21 . 20 2 10 9 Fast Attach 37 | 7 . . 4 1 14 11 Attach 30 | . 2 . 6 . 5 17 Detach . | . . . . . . . Swap 86 | . 15 2 10 3 35 21 Drop 49 | . 15 . 5 3 21 5 Fire 296 | 5 36 5 65 16 107 62 Melee 27 | . . . 2 . 9 16 Ram 1 | . . . 1 . . . Kick . | . . . . . . . Crush . | . . . . . . . Escape Stasis 6 | . . . . . . 6 Rewire . | . . . . . . . Trap . | . . . . . . . Miscellaneous . | . . . . . . . Route ------- -11/Scrapyard -10/Materials (discovered 4 exits: *Mat x2 / [*Min] / [*Sub]) -10/Mines (discovered 4 exits: *Mat x2 / [*Exi] / [*Sub]) -9/Materials (discovered 3 exits: [*Min] / [*Sto x2]) -9/Mines (discovered 2 exits: *Mat x2) -8/Materials (discovered 3 exits: *Fac x3) -7/Factory (discovered 2 exits: [*Fac] / [*Low]) History --------- Turn | Location | Event 31 | -11/Scrapyard | Discovered new exit (range 12) 90 | -11/Scrapyard | Entered Materials 303 | -10/Materials | Build established: Mutant 394 | -10/Materials | Discovered new exit (range 16) 498 | -10/Materials | Discovered new exit (range 15) 590 | -10/Materials | Derelicts attacked the area 711 | -10/Materials | Discovered new exit (range 7) 865 | -10/Materials | Discovered new exit (range 16) 987 | -10/Materials | Entered Mines 988 | -10/Mines | Met a Derelict bent on vengeance 1170 | -10/Mines | Deemed a non-threat by the Exiles lab entrance 1171 | -10/Mines | Discovered new exit (range 5) 1216 | -10/Mines | Discovered new exit (range 14) 1236 | -10/Mines | Learned location of Recycling (-9) 1273 | -10/Mines | YI-UF0 nonchalantly dropped a Grenade Launcher on the ground 1278 | -10/Mines | Discovered new exit (range 7) 1352 | -10/Mines | Assisted by bots powering up and referring to "LRC-V3" 1395 | -10/Mines | Received a Mining Laser from a helpful Derelict 1593 | -10/Mines | Discovered new exit (range 8) 1679 | -10/Mines | Entered Materials 1679 | -9/Materials | Accompanied by 2 allies 1679 | -9/Materials | Evolved 2 slots: Utility x2 1697 | -9/Materials | Discovered new exit (range 14) 1787 | -9/Materials | Repaired Autogun 1814 | -9/Materials | Repaired Hcp. Storage Unit 2067 | -9/Materials | Build established: Scavenger-Mutant 2086 | -9/Materials | Discovered new exit (range 15) 2231 | -9/Materials | Lost 3 parts (1p1n1w) 2500 | -9/Materials | Discovered new exit (range 13) 2863 | -9/Materials | Entered Mines 3084 | -9/Mines | Discovered new exit (range 2) 3099 | -9/Mines | Received a Rocket Launcher from a helpful Derelict 3146 | -9/Mines | Core integrity fell below 50% 3258 | -9/Mines | Learned 2 Materials zone layouts 3324 | -9/Mines | Discovered new exit (range 10) 3708 | -9/Mines | Entered Materials 3708 | -8/Materials | Evolved 2 slots: Propulsion x2 3800 | -8/Materials | Repaired Autogun 4157 | -8/Materials | Identified exit to Factory 4755 | -8/Materials | Garrison activated, responded to threat 4777 | -8/Materials | Core integrity fell below 50% 4810 | -8/Materials | Lost 6 parts (1p3n1u1w) 4815 | -8/Materials | Destroyed 8 combat bots 5538 | -8/Materials | Entered Factory 5538 | -7/Factory | Evolved 2 slots: Propulsion x1, Utility x1 6247 | -7/Factory | Lost 4 parts (2n2w) 6430 | -7/Factory | Lost 5 parts (1p2n2u) 6603 | -7/Factory | Lost 6 parts (1p3n1u1w) 6610 | -7/Factory | Discovered new exit (range 17) 6633 | -7/Factory | Garrison activated, responded to threat 6715 | -7/Factory | Discovered new exit (range 9) 6850 | -7/Factory | Core integrity fell below 50% 6873 | -7/Factory | Core integrity fell below 20% 6889 | -7/Factory | Destroyed by Y-54 Guardian with Gatling Laser Last Messages --------------- 06839_ Imp. Hover Unit destroyed. 06841_ The unstable cave ceiling collapses. 06843_ Gravmag System destroyed. 06843_ Gatling Laser destroyed. 06846_ Gravmag System destroyed. 06849_ Imp. Hover Unit destroyed. 06851_ Hover Unit destroyed. 06852_ Y-54 Guardian heat damages Imp. Heat Sink. 06853_ Lgt. Nuclear Core destroyed. 06857_ Hover Unit destroyed. 06857_ Acquired Prototype Energy Gun. 06857_ Identified Adv. Beam Rifle. 06857_ Gatling Laser destroyed. 06860_ The unstable cave ceiling collapses. 06862_ S-27 Virus destroyed. 06862_ Gravmag System destroyed. 06873_ S-27 Virus destroyed. 06883_ Adv. Heat Sink destroyed. 06886_ Hacking Suite destroyed. 06886_ Adv. Beam Rifle destroyed. Map ----- +----------------------------------------------------+ | ?????????????????????????????????????????????????? | | ?????????????????????????????????????????????????? | | ?????????????????????????????????????????????????? | | ?????????????????????????????????????????????????? | | ?????????????????????????????????????????????????? | | ?????????????????????????????????????????????????? | | ?????????????????????????????????????????????????? | | ?????????????????????????????????????????????????? | | ?????????????????????????????????????????????????? | | ?????????????????????????????????????????????????? | | ?????????????????????????????????????????????????? | | ##???????????????????????????????????????????????? | | ???????????????????????????????????????????????? | | ??????????????##???????????????????????????????? | | ???##########"#??????????? ??""???????????????? | | ???# #?????###?? ? """""" ????????????? | | ? ???# #????? #?? ??????????????? | | ? ???# #?##### ### ?????????????????? | | ##+#### ### # # # ##+###????????????? | | + # ???????????? | | # ! """" ???????????? | | # """ ???????????????? | | # ! [ """""" + ?????????????????? | | ####### "# %%"""""" #??????????????????? | | #?????###### [=%[ #??????????????????? | | ###????????# ^*!=@ ^ #??????????????????? | | #????????# ![[ #??????????????????? | | #????????# [[ """#??????????????????? | | #????????# Y Y"#??????????????????? | | #????????# [ ^"""#??????????????????? | | #????????# #??????????????????? | | ### #????????## ###########??????????????????? | | #?# #?????????###????????????????????????????? | | ?# #????????????????????????????????????????? | | # #????????????????????????????????????????? | | # #????????????????????????????????????????? | | + #????????????????????????????????????????? | | # #????????????????????????????????????????? | | ### #????????????????????????????????????????? | | ### #????????????????????????????????????????? | | #????????????????????????????????????????? | | #????????????????????????????????????????? | | #????????????????????????????????????????? | | #????????????????????????????????????????? | | #????????????????????????????????????????? | | #????????????????????????????????????????? | | #????????????????????????????????????????? | | ?????????????????????????????????? | | ?????????????????????????????????? | | "" """ """ """ "?????????????????????????????????? | +----------------------------------------------------+ Best States ------------- Heat Dissipation 59 Energy Generation 14 Energy Capacity 265 Matter Stores 300 Matter Capacity 300 Sight Range 20 Robot Scan Range 15 Terrain Scan Density 10 Armor Coverage 150 Resistance: TH 10 Utility Shielding 66 Evasion (%) 56 Offensive Hacking 20 Authchip Count 2 Item Schematics ----------------- Huge Storage Unit | -10/Materials | Hacked Robot Schematics ------------------ None Fabricated ------------ Nothing Repaired ---------- Autogun | 65% | -9/Materials Hcp. Storage Unit | 96% | -9/Materials Autogun | 26% | -8/Materials Alien Tech Used ----------------- None Achievements -------------- None Challenges ------------ None Game ------ Seed FrostElectrostormDriver Manual? 0 Play Time 01:04:54 Cumulative 354.1 hours Start 2025.05.21 @ 11:51:31 End 2025.05.21 @ 14:37:53 Sessions 3 Manual Loads 0 Difficulty Rogue Special Mode None Game No. 188 Rogue 188 Adventurer 0 Explorer 0 Win Type - Total 4 Types 4/0/0/0/0/0/0/0/0/0 Lore% 56 Gallery% 65 Achievement% 61 Wizard Run 0 Options --------- Layout 0 ASCII 0 Keyboard 1 Movement Vi Keybinds 0 Fullscreen 2 Font 18/SmallcapsGlow Map View 76x50 Zoom Use 0% Tactical HUD 1 Map Filters NONE Filters NONE Steam 1 RUN: 28a78e4d-25e1-4842-804e-cb1c5ad7d9db